Cogmind - Beta 12 --- EXPLORER MODE // 2023.05.03 @ 01:48:09 Player: NED1124 Result: Destroyed by G-47 Trooper with Particle Gun Performance ------------- Evolutions (2) 1000 Regions Visited (4) 800 Robots Destroyed (22) 110 Value Destroyed (618) 618 Prototype IDs (0) 0 Alien Tech Used (0) 0 Bonus (0) 0 TOTAL SCORE: 2528 Bonus ------- None Cogmind --------- Core Integrity 0/550 Matter 280/300 Energy 94/100 System Corruption 0% Temperature Cool (9) Movement Core (100) Ox1 Location -8/Materials Parts ------- > --- POWER (2) -------- (None) > --- PROPULSION (4) --- (None) > --- UTILITY (4) ------ (None) > --- WEAPON (2) ------- Mace Mace > --- INVENTORY (5) ---- Aluminum Leg Heat Sink Utility Shielding Light Armor Plating Mining Laser Peak State ------------ > --- POWER ------------ Light Ion Engine Light Nuclear Core > --- PROPULSION ------- Aluminum Leg Aluminum Leg Aluminum Leg VSS Leg > --- UTILITY ---------- Improved Heat Sink Medium Storage Unit Targeting Computer ECM Suite > --- WEAPON ----------- Small Laser Heavy Assault Rifle > --- INVENTORY -------- Light Deuterium Engine Aluminum Leg Heat Sink Targeting Computer Utility Shielding Light Armor Plating Light Assault Rifle Mining Laser [Rating: 20] Favorites ----------- Power Light Ion Engine Engine Light Ion Engine Power Core Micro Nuclear Core Propulsion Aluminum Leg Leg Aluminum Leg Utility Medium Storage Unit Device ECM Suite Storage Medium Storage Unit Processor Targeting Computer Protection Light Armor Plating Weapon Light Assault Rifle Energy Gun Small Laser Ballistic Gun Light Assault Rifle Special Weapon Mining Laser Impact Weapon Mace Build | -11 -10 -9 -9 -8 ------- Run | Jun Mat Mat Min Mat Slots Evolved 5 | . 1 2 . 2 Power 1 | . . . . 1 Propulsion 2 | . 1 1 . . Utility 2 | . . 1 . 1 Weapon . | . . . . . Parts Attached 35 | 9 1 6 2 17 Power 8 | 2 . 1 1 4 Engine 6 | 2 . 1 1 2 Core 2 | . . . . 2 Reactor . | . . . . . Propulsion 9 | 2 1 2 . 4 Treads . | . . . . . Leg 9 | 2 1 2 . 4 Wheel . | . . . . . Hover . | . . . . . Flight . | . . . . . Utility 7 | 2 . 2 . 3 Device 4 | . . 1 . 3 Storage 1 | 1 . . . . Processor 1 | 1 . . . . Hackware . | . . . . . Protection 1 | . . 1 . . Artifact . | . . . . . Weapon 11 | 3 . 1 1 6 Energy Gun 2 | 1 . . . 1 Energy Cannon . | . . . . . Ballistic Gun 6 | 2 . 1 . 3 Ballistic Cannon . | . . . . . Launcher . | . . . . . Special Weapon 1 | . . . 1 . Impact Weapon 2 | . . . . 2 Slashing Weapon . | . . . . . Piercing Weapon . | . . . . . Special Melee Weapon . | . . . . . Unidentified Prototypes . | . . . . . Parts Lost 20 | . . . 4 16 Power 5 | . . . 1 4 Propulsion 7 | . . . 1 6 Utility 3 | . . . . 3 Weapon 5 | . . . 2 3 Highest Loss Streak 15 | . . . 4 15 To Critical Strikes . | . . . . . Average Slot Usage (%) 80 | . 95 97 80 55 Engine 9 | . 12 10 9 9 Leg 29 | . 33 37 33 16 Device 2 | . . . . 6 Storage 8 | . 12 10 10 5 Processor 8 | . 12 10 10 5 Protection 5 | . . 10 10 1 Ballistic Gun 13 | . 25 20 5 4 Naked Turns 60 | . . . . 60 Heaviest Build 25 | 16 16 22 22 25 Greatest Support 42 | 20 30 40 40 42 Greatest Overweight (x) 4 | 4 . . . 4 Average Overweight (x) . | . . . . . Largest Inventory Capacity 10 | 10 10 10 10 10 Average Capacity 9 | 9 10 10 10 8 Most Carried 10 | 5 10 10 9 10 Average Carried 7 | 3 6 9 8 6 Final Capacity 10 | 10 10 10 10 5 Final Carried 10 | 5 10 9 8 5 Class Distribution -------------------- 91% | Hacker-Mutant 8% | Scavenger-Mutant Dominant Class ---------------- Hacker-Mutant | -10/Materials Hacker-Mutant | -9/Materials Hacker-Mutant | -9/Mines Hacker-Mutant | -8/Materials Resources | -11 -10 -9 -9 -8 ----------- Run | Jun Mat Mat Min Mat Matter Collected 626 | 239 109 94 16 168 Remotely . | . . . . . Salvage Created 769 | . 114 227 . 428 Parts 48 | . 13 14 . 21 Haulers Intercepted . | . . . . . Recyclers Shooed . | . . . . . Parts Field Recycled . | . . . . . Retrieved Matter . | . . . . . Parts Self-Destructed . | . . . . . Prevented . | . . . . . Kills | -11 -10 -9 -9 -8 ------- Run | Jun Mat Mat Min Mat Combat Hostiles Destroyed 20 | . 6 7 . 7 Guns 20 | . 6 7 . 7 Classes Destroyed 6 | . 2 1 . 3 Worker 1 | . . . . 1 Recycler 1 | . . . . 1 Swarmer 8 | . 5 3 . . Grunt 7 | . 1 2 . 4 Sentry 4 | . . 2 . 2 Hunter 1 | . . . . 1 Best Kill Streak 4 | . 3 4 . 3 Combat Bots Only 4 | . 3 4 . 3 Max Kills in Single Turn 2 | . 1 2 . 1 Gunslinging 1 | . . 1 . . Exploded . | . . . . . Melee . | . . . . . Uniques/NPCs Destroyed . | . . . . . Combat | -11 -10 -9 -9 -8 -------- Run | Jun Mat Mat Min Mat Damage Taken 2487 | . 94 135 537 1721 Core 705 | . 12 8 128 557 Absorbed by Shields . | . . . . . Core Remaining (%) 87 | 100 95 . 66 . Volleys Fired 93 | . 12 13 12 56 Largest 2 | . 2 2 2 2 Hottest 120 | . 40 40 120 63 Shots Fired 145 | . 24 26 18 77 Gun 139 | . 24 26 12 77 Cannon . | . . . . . Launcher . | . . . . . Special 6 | . . . 6 . Kinetic 124 | . 24 26 12 62 Thermal 21 | . . . 6 15 Explosive . | . . . . . Electromagnetic . | . . . . . Robot Hit Streak 23 | . 5 23 . 17 Robot Miss Streak 1 | . 1 1 . 1 Penetration Max . | . . . . . Secondary Targets 7 | . 2 3 . 2 Max Gunslinging Chain 1 | . 1 1 . 1 Shots Hit Robots 106 | . 16 23 . 67 Core Hits 50 | . 10 11 . 29 Critical Kills 1 | . . . . 1 Critical Parts Destroyed . | . . . . . Critical Strikes 1 | . . . . 1 Destroy 1 | . . . . 1 Melee Attacks 1 | . . . . 1 Impact 1 | . . . . 1 Slashing . | . . . . . Piercing . | . . . . . Sneak Attacks . | . . . . . Combat Hostiles . | . . . . . Follow-up Attacks . | . . . . . Damage Inflicted 1103 | . 165 208 20 710 Guns 1014 | . 165 208 . 641 Cannons . | . . . . . Explosions . | . . . . . Melee 45 | . . . . 45 Ramming 44 | . . . 20 24 Kinetic 866 | . 165 208 . 493 Thermal 148 | . . . . 148 Explosive . | . . . . . Electromagnetic . | . . . . . Impact 45 | . . . . 45 Slashing . | . . . . . Piercing . | . . . . . Highest Corruption 8 | . . 1 8 . Average Corruption 2 | . . 1 5 . Corruption Purged . | . . . . . Corruption Blocked . | . . . . . Effects 9 | . . 5 4 . Message Errors 2 | . . 1 1 . Matter Fused 1 | . . . 1 . Heat Flow Errors 3 | . . 2 1 . Energy Discharges 1 | . . . 1 . Parts Rejected 1 | . . 1 . . Data Loss (minor) 1 | . . 1 . . Overload Shots . | . . . . . Overflow Damage . | . . . . . Projectiles . | . . . . . Explosions . | . . . . . Melee . | . . . . . Knockbacks 1 | . . . . 1 Impact 1 | . . . . 1 Kinetic . | . . . . . Secondary . | . . . . . Self-Inflicted Damage 5 | . . . . 5 Shots . | . . . . . Rammed 3 | . . . . 3 Targets Rammed 17 | . . . 4 13 Kicked 14 | . . . 4 10 Crushed . | . . . . . Highest Temperature 264 | . . 199 222 264 Average Temperature 85 | . . 68 69 109 Received Heat Transfer 1314 | . 12 78 . 1224 Siege Activations . | . . . . . Robots Corrupted . | . . . . . Combat Hostiles . | . . . . . Parts Fried . | . . . . . Impact Corruptions . | . . . . . Robots Melted . | . . . . . Combat Hostiles . | . . . . . Parts Melted . | . . . . . Heat Transferred 350 | . . . . 350 Parts Sabotaged . | . . . . . Parts Stolen . | . . . . . Parts Stripped . | . . . . . Power Chain Reactions . | . . . . . Missiles Intercepted . | . . . . . Alert | -11 -10 -9 -9 -8 ------- Run | Jun Mat Mat Min Mat Peak Influence 262 | . 180 262 16 196 Initial 54 | . . 54 16 . Average 85 | . 89 123 5 86 Maximum Alert Level 1 | . . 1 . . Low Security (%) 84 | 100 100 54 100 100 Level 1 15 | . . 45 . . Level 2 . | . . . . . Level 3 . | . . . . . Level 4 . | . . . . . Level 5 . | . . . . . High Security . | . . . . . Max Security . | . . . . . Squads Dispatched 3 | . . 1 . 2 Investigation 1 | . . . . 1 Extermination . | . . . . . Reinforcement 2 | . . 1 . 1 Assault . | . . . . . Garrison . | . . . . . Intercept . | . . . . . Searches Triggered . | . . . . . Construction Impeded . | . . . . . Haulers Reinforced . | . . . . . Active Scanning Responses . | . . . . . Cargo Convoy Interrupts . | . . . . . Stealth | -11 -10 -9 -9 -8 --------- Run | Jun Mat Mat Min Mat Distress Signals 1 | . . . . 1 Communications Jammed . | . . . . . Distress Signals . | . . . . . Times Spotted 46 | . 11 13 . 22 Peak Tracking Total 9 | . 4 7 . 9 Tactical Retreats 3 | . . . . 3 Traps | -11 -10 -9 -9 -8 ------- Run | Jun Mat Mat Min Mat Traps Triggered 1 | . . 1 . . Indirectly . | . . . . . Trap Hack Attempts . | . . . . . Triggered . | . . . . . Disarmed . | . . . . . Reprogrammed . | . . . . . Reused . | . . . . . Traps Extracted . | . . . . . Installed . | . . . . . Triggered . | . . . . . Machines | -11 -10 -9 -9 -8 ---------- Run | Jun Mat Mat Min Mat Machines Disabled . | . . . . . Max in Single Turn . | . . . . . Machines Repaired . | . . . . . Machines Sabotaged . | . . . . . Overloaded Fab Kills . | . . . . . Hacking | -11 -10 -9 -9 -8 --------- Run | Jun Mat Mat Min Mat Machines Accessed 11 | . 1 6 . 4 Terminals 9 | . 1 5 . 3 Fabricators . | . . . . . Repair Stations . | . . . . . Recycling Units 1 | . . 1 . . Scanalyzers . | . . . . . Garrison Access 1 | . . . . 1 Total Hacks 22 | . 2 11 . 9 Successful 12 | . 1 5 . 6 Failed 10 | . 1 6 . 3 Catastrophic 3 | . . 3 . . Database Lockouts . | . . . . . Manual 11 | . . 7 . 4 Terminals 19 | . 2 10 . 7 Fabricators . | . . . . . Repair Stations . | . . . . . Recycling Units 1 | . . 1 . . Scanalyzers . | . . . . . Garrison Access 2 | . . . . 2 Terminal Hacks 9 | . 1 4 . 4 Level Access Points 3 | . 1 1 . 1 Terminal Index 2 | . . 1 . 1 Recall Reinforcements 3 | . . 1 . 2 Zone Layout 1 | . . 1 . . Fabricator Hacks . | . . . . . Repair Station Hacks . | . . . . . Recycling Unit Hacks 1 | . . 1 . . Retrieve Components 1 | . . 1 . . Scanalyzer . | . . . . . Garrison Access Hacks 2 | . . . . 2 Unlock Access 1 | . . . . 1 Coupler Status 1 | . . . . 1 Unauthorized Hacks . | . . . . . Terminals . | . . . . . Fabricators . | . . . . . Repair Stations . | . . . . . Recycling Units . | . . . . . Scanalyzers . | . . . . . Garrison Access . | . . . . . Data Cores Recovered . | . . . . . Used . | . . . . . Hacking Detections 7 | . 1 4 . 2 Full Trace Events 2 | . . 1 . 1 Feedback Events . | . . . . . Feedback Blocked . | . . . . . Robot Schematics Acquired . | . . . . . Robots Built . | . . . . . Authchips . | . . . . . Time . | . . . . . Total Robot Build Rating . | . . . . . Part Schematics Acquired . | . . . . . Parts Built . | . . . . . Authchips . | . . . . . Time . | . . . . . Total Part Build Rating . | . . . . . Parts Repaired . | . . . . . Time . | . . . . . Parts Recycled . | . . . . . Recycled Matter . | . . . . . Retrieved Matter . | . . . . . Retrieved Components 7 | . . 7 . . Parts Scanalyzed . | . . . . . Part Schematics Acquired . | . . . . . Parts Damaged . | . . . . . Bothacking | -11 -10 -9 -9 -8 ------------ Run | Jun Mat Mat Min Mat Used RIF Installer . | . . . . . Robots Hacked . | . . . . . Non-combat . | . . . . . Combat . | . . . . . Robot Hacks Applied . | . . . . . Relay Couplers Released . | . . . . . Fabnet Peak Effective % . | . . . . . Robots Rewired . | . . . . . Allies Hacked . | . . . . . Hacks Repelled . | . . . . . Allies | -11 -10 -9 -9 -8 -------- Run | Jun Mat Mat Min Mat Total Allies . | . . . . . Largest Group . | . . . . . Highest-Rated Group . | . . . . . Highest-Rated Ally . | . . . . . Total Orders . | . . . . . Ally Attacks . | . . . . . Total Damage . | . . . . . Kills . | . . . . . Allies Corrupted . | . . . . . Allies Melted . | . . . . . Intel | -11 -10 -9 -9 -8 ------- Run | Jun Mat Mat Min Mat Robot Analysis Total . | . . . . . Derelict Logs Recovered . | . . . . . Drone Launches . | . . . . . Drone Recoveries . | . . . . . Exploration | -11 -10 -9 -9 -8 ------------- Run | Jun Mat Mat Min Mat Turns Passed 1768 | 113 283 614 199 559 Spaces Moved 1272 | 73 203 475 127 394 Core 236 | 9 . . . 227 Treads . | . . . . . Legs 1036 | 64 203 475 127 167 Wheels . | . . . . . Hover . | . . . . . Flight . | . . . . . Fastest Speed 50 | 50 120 120 120 50 Average Speed 114 | 131 120 120 120 98 Slowest Speed 250 | 250 120 120 120 250 Overloaded Moves . | . . . . . Propulsion Burnouts . | . . . . . Robots Hopped . | . . . . . Cave-ins Triggered 2 | . . . 2 . Exploration Rate (%) 27 | 4 43 30 21 41 Regions Visited 4 Branch Regions 1 Pre-discovered Areas . | . . . . . Known Exits Taken 4 | 1 1 1 1 . Unknown Exits Taken . | . . . . . Scrap Searched 1 | . . . 1 . Spaces Dug 4 | . . . 4 . Terrain Destroyed 4 | . . . 4 . Melee . | . . . . . Projectile 4 | . . . 4 . AOE . | . . . . . Terrain Rammed . | . . . . . Walls Destroyed . | . . . . . Machines Disabled . | . . . . . Actions | -11 -10 -9 -9 -8 --------- Run | Jun Mat Mat Min Mat Total 1433 | 86 220 497 144 486 Wait . | . . . . . Move 1268 | 72 202 474 126 394 Hop . | . . . . . Pick Up 17 | 5 5 2 . 5 Fast Attach 12 | 7 1 . . 4 Attach 14 | . . 3 1 10 Detach . | . . . . . Swap 9 | 2 . 3 1 3 Drop 2 | . . 2 . . Fire 93 | . 12 13 12 56 Melee 1 | . . . . 1 Ram 3 | . . . . 3 Kick 14 | . . . 4 10 Crush . | . . . . . Escape Stasis . | . . . . . Rewire . | . . . . . Trap . | . . . . . Miscellaneous . | . . . . . Route ------- -11/Junkyard -10/Materials (discovered 4 exits: *Mat x3 / *Min) -9/Materials (discovered 4 exits: Mat x3 / *Min) -9/Mines -8/Materials (discovered 4 exits: Fac x3 / Gar) History --------- Turn | Location | Event 29 | -11/Junkyard | Identified exit to Materials 29 | -11/Junkyard | Discovered exit to Materials (range 16) 114 | -11/Junkyard | Entered Materials 114 | -10/Materials | Evolved 1 slot: Propulsion x1 126 | -10/Materials | Identified exit to Materials 198 | -10/Materials | Identified exit to Mines 198 | -10/Materials | Discovered exit to Mines (range 16) 300 | -10/Materials | Build established: Hacker-Mutant 397 | -10/Materials | Entered another Materials area 397 | -9/Materials | Evolved 2 slots: Propulsion x1, Utility x1 656 | -9/Materials | Identified exit to Materials 1000 | -9/Materials | Identified exit to Mines 1000 | -9/Materials | Discovered exit to Mines (range 8) 1011 | -9/Materials | Entered Mines 1014 | -9/Mines | Met a Derelict bent on vengeance 1085 | -9/Mines | Crushed by falling debris 1099 | -9/Mines | Crushed by falling debris 1130 | -9/Mines | Lost 4 parts (1p1n2w) 1195 | -9/Mines | Discovered exit to Materials (range 8) 1210 | -9/Mines | Entered Materials 1210 | -8/Materials | Evolved 2 slots: Power x1, Utility x1 1257 | -8/Materials | Identified exit to Garrison 1542 | -8/Materials | Core integrity fell below 50% 1610 | -8/Materials | Released all parts (2) 1612 | -8/Materials | Lost 15 parts (4p6n2u3w) 1696 | -8/Materials | Identified exit to Factory 1738 | -8/Materials | Core integrity fell below 20% 1769 | -8/Materials | Destroyed by G-47 Trooper with Particle Gun Last Messages --------------- Found 3 level access points to Factory: (8,78) (81,87) (12,5) Map updated. 01723_ Mic. Nuclear Core severed. 01742_ Slammed into Y-45 Defender. 01742_ Destabilizing: Core damaged (-27). 01743_ Slammed into Y-45 Defender. 01745_ R-06 Scavenger collects Mic. Nuclear Core. 01746_ R-06 Scavenger suffers critical hit (Burn). 01746_ R-06 Scavenger destroyed. 01752_ Connecting with Terminal... >>Recall(Reinforcements) Establishing remote squad link... No tasked reinforcement squads found. 01752_ ALERT: Suspicious activity at Terminal M003. Dispatching Investigation squad. 01760_ Acquired Mace. 01768_ G-47 Trooper knocked back. Map ----- +----------------------------------------------------+ | ??????????????????????????????????????????????? | | ??????????????????????????????????????????????? | | ??????????????????????????????????????????????? | | ??????????????????????????????????????????????? | | ??????????????????????????????????????????????? | | ??????????????????????????????????????????????? | | ??????????????????????????????????????????????? | | ??????????????????????????????????????????????? | | ??????????????????????????????????????????????? | | ?????????????????###########??????????????????? | | ?????????????????# #??????????????????? | | ?????????????????# #??????????????????? | | ?????????????????# #??????????????????? | | ?????????????????# #??????????????????? | | ?????????????????# #??????????????????? | | ?????????????????# """ """ #??????????????????? | | ?????????????????# """ """ #??????????????????? | | ?????????????????# """%""" #??????????????????? | | ?????????????#########/###### #????????????? | | ??????###????# = % #????????????? | | ?????## ??# =% ##### #????????????? | | ?????# !!! T # * #?????????????????????? | | ??????#!!! + ###+######???????????????????? | | ??????#!!! # # g b #???????????????????? | | ??????# ??# # """ "" #???????????????????? | | ??????# !????# # """@T" #???????????????????? | | ??????#??????# # """l"" #???????????????????? | | ?????????????# # g Y #???????????????????? | | ?????????????# # = #???????????????????? | | ????########## # #???????????????????? | | ????# # # // #???????????????????? | | ????# """ # # // #???#######?????????? | | ????# ! """ # ############## #?????????? | | ????# """ # #?????????? | | ????# + #########?? | | ????# # | | ????# # ############## #########?? | | ????# ""T"" # #????????????## ##?????????? | | ????#! """"" # #??????????#### #??????????? | | ????########## #?????????##! #??????????? | | ????????????? #?????????#! #??????????? | | ???????????? +?????????#! #??????????? | | ??????????? #?????????#! * +??????????? | | ?????????? #?????????#! =%!#??????????? | | ????????? " #?????????##! ##=##??????????? | | ???????? """ #??????????###?# #???????????? | | ????????? ?" #??????????????# #???????????? | | ????????????" #??????????????# #???????##### | | ????????????" #????????????### ###?????# | | ????????????? ?????????????# ####### | +----------------------------------------------------+ Best States ------------- Heat Dissipation 45 Energy Generation 19 Energy Capacity 275 Matter Stores 300 Matter Capacity 300 Sight Range 16 Terrain Scan Density 10 ECM Strength 1 Armor Coverage 150 Resistance: KI 35 Resistance: TH 35 Resistance: EX 35 Resistance: EM 35 Resistance: I 35 Resistance: S 35 Resistance: P 35 Evasion (%) 55 Targeting Accuracy 5 Offensive Hacking 20 Item Schematics ----------------- None Robot Schematics ------------------ None Fabricated ------------ Nothing Alien Tech Used ----------------- None Achievements -------------- None Challenges ------------ None Game ------ Seed HugeWarpFrame Manual? 0 Play Time 00:24:42 Cumulative 33.9 hours Start 2023.05.03 @ 01:07:09 End 2023.05.03 @ 01:48:09 Sessions 1 Manual Loads 0 Difficulty Explorer Special Mode None Game No. 61 Rogue 0 Adventurer 0 Explorer 61 Win Type - Total 0 Types 0/0/0/0/0/0/0/0/0 Lore% 7 Gallery% 27 Achievement% 23 Wizard Run 0 Options --------- ASCII 0 Keyboard 1 Movement Arrows Keybinds 0 Fullscreen 1 Font 18/SmallcapsGlow Map View 76x50 Tactical HUD 1 Map Filters NONE Filters NONE Steam 1 RUN: bc8a4278-cef1-4872-8731-3e41dfd4d575